[Event "German-ch Blitz Women 2022"]
[Site "Magdeburg"]
[Date "2022.08.13"]
[Round "15.11"]
[White "Daemering, Katrin"]
[Black "Braun, Kristin"]
[Result "1-0"]
[ECO "B77"]
[WhiteElo "1965"]
[BlackElo "1897"]
[Annotator "TA"]
[PlyCount "71"]
[EventDate "2022.08.10"]
[EventType "tourn"]
[EventCountry "GER"]
[SourceTitle "playchess.com"]
[Source "ChessBase"]
[SourceQuality "1"]
[TimeControl "180+2"]

{[%evp 23,71,-12,17,-11,27,-35,-24,-68,0,-195,0,-108,-94,-103,0,0,63,0,4,-51,-61,-97,-87,-136,18,21,19,21,27,25,77,25,26,35,340,316,421,409,481,510,484,498,433,337,330,329,339,231,5314,5314]} 1. e4 {[%emt 0:00:00]} c5 {[%emt 0:00:00]} 2. Nf3 d6 3. d4 cxd4 4. Nxd4 {[%emt 0:00:03]} Nf6 {[%emt 0:00:01]} 5. Nc3 g6 6. Be3 Bg7 7. f3 {[%emt 0:00:05]} O-O {[%emt 0:00:02]} 8. Qd2 {[%emt 0:00:01]} Nc6 {[%emt 0:00:00]} 9. Bc4 {[%emt 0:00:02]} Nxd4 {[%emt 0:00:02]} 10. Bxd4 {[%emt 0:00:01]} Be6 {[%emt 0:00:00]} 11. Bxe6 {[%emt 0:00:02]} fxe6 {[%emt 0:00:01]} 12. O-O {[%emt 0:00:03]} a6 {[%emt 0:00:08]} 13. Rad1 {[%emt 0:00:03] B77: Sicilian Dragon: Yugoslav Attack, 9 Bc4 sidelines.} Rc8 {[%emt 0:00:02]} 14. a3 {[%emt 0:00:02]} (14. Ne2 $11) 14... Qa5 $15 {[%emt 0:00:08] [#]} 15. Qf2 $146 {[%emt 0:00:03] [#] Black has an edge.} ({Predecessor:} 15. Rfe1 Nd7 16. Bxg7 Kxg7 17. Qd4+ Qe5 18. h3 Qxd4+ 19. Rxd4 Ne5 20. Kf2 Nc4 21. Rb1 {0-1 (71) Neuber,P (1744)-Felten,M (1979) Playchess.com INT 2020}) 15... Qh5 {[%emt 0:00:04]} (15... Ng4 $1 $15 16. Qd2 Ne5) 16. Rd2 $2 {[%emt 0:00:14] [#]} (16. Rfe1 $11) 16... Rxc3 $2 {[%emt 0:00:18]} 17. Bxc3 {[%emt 0:00:22] [#]} (17. bxc3 $2 {[#] loses.} Nxe4 $1 18. Qe2 (18. g4 $2 Qa5 $19) 18... Nxd2 19. Qxd2 Qd5 $19) (17. Bxf6 $11 {was the only way to keep the balance.} Rc7 18. Bxg7 Kxg7 19. Re1) 17... Nxe4 $1 $17 {[%emt 0:00:01][%mdl 576] Pin, Double Attack} 18. Qe3 {[%emt 0:00:20]} Nxd2 {[%emt 0:00:09]} (18... Bxc3 $17 19. Re2 Be5) 19. Qxe6+ $11 {[%emt 0:00:03]} Kh8 {[%emt 0:00:13]} (19... Rf7 $11 20. Qc8+ Rf8 21. Qe6+ Rf7 22. Qc8+ Rf8 23. Qe6+) 20. Bxd2 {[%emt 0:00:08]} (20. Qxe7 $14 Rg8 21. Bxd2) 20... Bf6 {[%emt 0:00:25]} 21. Re1 {[%emt 0:00:11]} ({Better is} 21. c3 $11) 21... Qc5+ $15 {[%emt 0:00:04]} 22. Be3 {[%emt 0:00:27]} Qxc2 {[%emt 0:00:01]} 23. b4 {[%emt 0:00:03]} ({White should try} 23. b3) 23... Rc8 $2 {[%emt 0:00:11]} (23... Qc3 $17 {[%cal Rc3e1]} 24. Bh6 Re8) 24. Rc1 $36 {[%emt 0:00:08][%mdl 2048] White fights for an advantage.} Qxc1+ {[%emt 0:00:19]} 25. Bxc1 Rxc1+ {[%emt 0:00:00][%mdl 4096] Endgame KQ-KRB} 26. Kf2 {[%emt 0:00:02] Qd7 is the strong threat.} Rc2+ {[%emt 0:00:02]} (26... Kg7 $11) 27. Kf1 {[%emt 0:00:08]} (27. Kg3 $16) 27... Rc1+ {[%emt 0:00:20]} 28. Ke2 {[%emt 0:00:04] Hoping for Qd7.} Ra1 $2 {[%emt 0:00:08][%mdl 8192] Loses the game.} ({Black should play} 28... Rc2+ $14 29. Kf1 Kg7) 29. Qf7 $18 {[%emt 0:00:04][%cal Rf7f8]} h6 {[%emt 0:00:28]} 30. Qxg6 {[%emt 0:00:04]} Rxa3 {[%emt 0:00:08]} 31. Qxh6+ {[%emt 0:00:03]} Kg8 {[%emt 0:00:00]} 32. Qg6+ {[%emt 0:00:04]} Kf8 {[%emt 0:00:03]} 33. Qe4 {[%emt 0:00:07]} Ra2+ {[%emt 0:00:06]} 34. Kf1 {[%emt 0:00:05]} b5 {[%emt 0:00:01]} 35. Qa8+ {[%emt 0:00:04]} Kf7 $2 {[%emt 0:00:00]} (35... Kg7 36. Qc8 Kf7) 36. Qd5+ {[%emt 0:00:03] Weighted Error Value: White=0.58/Black=0.80} 1-0

[Event "German-ch Blitz Women 2022"]
[Site "Magdeburg"]
[Date "2022.08.13"]
[Round "16.1"]
[White "Paehtz, Elisabeth"]
[Black "Grabowski, Petra"]
[Result "0-1"]
[ECO "D02"]
[WhiteElo "2484"]
[BlackElo "1643"]
[Annotator "TA"]
[PlyCount "51"]
[EventDate "2022.08.10"]
[EventType "tourn"]
[EventCountry "GER"]
[SourceTitle "playchess.com"]
[Source "ChessBase"]
[SourceQuality "1"]
[TimeControl "180+2"]

{[%evp 9,50,0,7,-8,0,0,7,17,43,12,36,-5,29,-2,-6,0,-30,-9,0,0,60,32,28,10,46,0,0,-7,193,0,0,0,0,0,0,-41,1558,-88,1558,1547,1744,1739,29999]} 1. d4 {[%emt 0:00:01]} Nf6 {[%emt 0:00:02]} 2. Nf3 {[%emt 0:00:01]} d5 {[%emt 0:00:02]} 3. Bf4 {[%emt 0:00:01]} e6 {[%emt 0:00:04]} 4. e3 {[%emt 0:00:01]} c5 {[%emt 0:00:03]} 5. c3 {[%emt 0:00:01]} Bd6 {[%emt 0:00:04]} 6. Bg3 {[%emt 0:00:01] D02: 1 d4 d5 2 Nf3 sidelines, including 2...Nf6 3 g3 and 2...Nf6 3 Bf4.} Bxg3 {[%emt 0:00:08]} 7. hxg3 {[%emt 0:00:01]} Nbd7 {[%emt 0:00:01]} 8. Nbd2 {[%emt 0:00:04] The position is equal.} b6 {[%emt 0:00:14]} 9. Bd3 {[%emt 0:00:24]} Bb7 {[%emt 0:00:04]} 10. Qe2 {[%emt 0:00:07]} Ne4 {[%emt 0:00:04] [#]} 11. Bxe4 $146 {[%emt 0:00:07]} ({Predecessor:} 11. g4 Nxd2 12. Qxd2 c4 13. Bc2 Nf6 14. Ne5 Ne4 15. Bxe4 dxe4 16. Nxc4 Qd5 17. Na3 {0-1 (40) Risting,E (2345)-Foisor,S (2260) Chess.com INT 2019}) 11... dxe4 {[%emt 0:00:03]} 12. Ne5 {[%emt 0:00:06]} Nxe5 {[%emt 0:00:10]} 13. dxe5 {[%emt 0:00:02]} Qg5 {[%emt 0:00:17]} 14. Rh5 {[%emt 0:00:12]} Qe7 {[%emt 0:00:14]} (14... Qg6 $11) 15. O-O-O {[%emt 0:00:29]} O-O-O {[%emt 0:00:07]} 16. Rh4 {[%emt 0:00:24]} Qc7 {[%emt 0:00:18]} 17. Qh5 {[%emt 0:00:18]} (17. Nc4 $14) 17... g6 $11 {[%emt 0:00:15]} 18. Qg5 {[%emt 0:00:01] And now Nc4 would win.} Rd5 $2 {[%emt 0:00:13] [#]} (18... Qd7 $11) 19. c4 $2 {[%emt 0:00:09]} (19. Nxe4 $2 Rxd1+ 20. Kxd1 Bxe4 21. Rxe4 Qd7+ 22. Ke2 h6 $19) (19. Nc4 $1 $18) 19... Rxe5 {[%emt 0:00:04]} 20. Qf6 {[%emt 0:00:02]} Rd8 {[%emt 0:00:20] Threatens to win with ...Rf5.} 21. g4 {[%emt 0:00:01] Prevents Rf5.} h5 {[%emt 0:00:07]} 22. Nf1 {[%emt 0:00:34]} hxg4 $2 {[%emt 0:00:02][%mdl 8192]} (22... Rxd1+ $15 23. Kxd1 Qd8+ 24. Qxd8+ Kxd8) 23. Rxd8+ $18 {[%emt 0:00:02][%mdl 64] [#] Remove Defender} Qxd8 {[%emt 0:00:07]} 24. Rh8 {[%emt 0:00:01][%csl Gh8][%cal Rf6d8][%mdl 64] Pin} Rd5 {[%emt 0:00:22]} 25. cxd5 {[%emt 0:00:05]} exd5 {[%emt 0:00:06]} 26. Qxd8# {[%emt 0:00:01][%mdl 32768] Weighted Error Value: White=0.26 (precise) /Black=0.70. Loss on time!?} 0-1

[Event "German-ch Blitz Women 2022"]
[Site "Magdeburg"]
[Date "2022.08.13"]
[Round "16.2"]
[White "Braun, Kristin"]
[Black "Khrapko, Marharyta"]
[Result "0-1"]
[ECO "B32"]
[WhiteElo "1897"]
[BlackElo "2128"]
[Annotator "TA"]
[PlyCount "42"]
[EventDate "2022.08.10"]
[EventType "tourn"]
[EventCountry "GER"]
[SourceTitle "playchess.com"]
[Source "ChessBase"]
[SourceQuality "1"]
[TimeControl "180+2"]

{[%evp 17,42,26,27,-20,-3,-224,-231,-238,-192,-437,-299,-680,-692,-690,-568,-2616,-2472,-29995,-29996,-29996,-29995,-29997,-29997,-29997,-29998,-29998,-29999]} 1. e4 {[%emt 0:00:00]} c5 {[%emt 0:00:00]} 2. Nf3 {[%emt 0:00:01][%cal Bg1f3,Bf3d4,Bd4b5][%mdl 32]} Nc6 {[%emt 0:00:01]} 3. d4 {[%emt 0:00:00]} cxd4 4. Nxd4 {[%emt 0:00:01]} e5 {[%emt 0:00:02]} 5. Nb5 {[%emt 0:00:01]} d6 {[%emt 0:00:01]} 6. c4 {[%emt 0:00:02]} Be7 {[%emt 0:00:02]} 7. N1c3 {[%emt 0:00:02]} a6 {[%emt 0:00:01]} 8. Na3 {[%emt 0:00:01]} f5 {[%emt 0:00:01]} 9. exf5 {[%emt 0:00:08]} Bxf5 {[%emt 0:00:01]} 10. Nd5 {[%emt 0:00:01] B32: Sicilian: Löwenthal and Kalashnikov Variations.} (10. Bd3 {feels stronger.} Be6 11. Nc2) 10... Nf6 $11 {[%emt 0:00:08] [#]} 11. Qf3 $146 {[%emt 0:00:26] [#]} (11. Bd3 $11 {and White is okay.} Be6 12. Nxe7 Qxe7 13. O-O) ({Predecessor:} 11. Be2 O-O 12. O-O Kh8 13. Be3 Nd7 14. Qd2 e4 15. Rad1 Bf6 16. Nxf6 Qxf6 17. Qxd6 Qxb2 {1-0 (49) Djokic,M (2129)-Schrik,R (2198) Chess.com INT 2021}) 11... Nd4 $19 {[%emt 0:00:20]} 12. Nxf6+ {[%emt 0:00:11] Black is clearly better.} Bxf6 {[%emt 0:00:01]} 13. Qxb7 {[%emt 0:00:06]} (13. Qe3 {was called for.}) 13... O-O {[%emt 0:00:18]} 14. Be3 $2 {[%emt 0:00:14]} (14. c5 d5 15. Qb6) 14... Rb8 {[%emt 0:00:06][%cal Ba8b8,Bb8b2,Bb2d2][%mdl 32]} ({Worse is} 14... Qa5+ 15. Bd2 Qd8 16. Bc3 $17) 15. Qxa6 {[%emt 0:00:11]} Rxb2 {[%emt 0:00:02] [#] Threatens to win with ...Bg5.} 16. Bxd4 {[%emt 0:00:37]} exd4 {[%emt 0:00:02]} 17. Nb5 {[%emt 0:00:21]} Qe7+ {[%emt 0:00:27] Black mates.} 18. Kd1 {[%emt 0:00:02]} Qe4 {[%emt 0:01:00]} 19. Qa4 {[%emt 0:00:34]} Bg5 {[%emt 0:00:10] This bishop pair is nice.} 20. Nxd6 {[%emt 0:00:17]} Rd2+ {[%emt 0:00:03]} 21. Kc1 Qe1+ {[%emt 0:00:02][%mdl 64] Skewer, Double Attack. White got outplayed after the opening.  Weighted Error Value: White=1.85/Black=0.23 (precise)} 0-1

[Event "German-ch Blitz Women 2022"]
[Site "Magdeburg"]
[Date "2022.08.13"]
[Round "16.3"]
[White "Skibbe, Diana"]
[Black "Daemering, Katrin"]
[Result "0-1"]
[ECO "B21"]
[WhiteElo "1943"]
[BlackElo "1965"]
[Annotator "TA"]
[PlyCount "20"]
[EventDate "2022.08.10"]
[EventType "tourn"]
[EventCountry "GER"]
[SourceTitle "playchess.com"]
[Source "ChessBase"]
[SourceQuality "1"]
[TimeControl "180+2"]

{[%evp 15,20,-22,29,-67,-55,-847,-845]} 1. e4 {[%emt 0:00:00]} c5 {[%emt 0:00:01]} 2. d4 {[%emt 0:00:02]} cxd4 {[%emt 0:00:01]} 3. c3 {[%emt 0:00:00]} dxc3 {[%emt 0:00:01]} 4. Nxc3 {[%emt 0:00:01]} e6 {[%emt 0:00:03]} 5. Nf3 {[%emt 0:00:02]} a6 {[%emt 0:00:01]} 6. Bc4 {[%emt 0:00:02]} Qc7 {[%emt 0:00:01]} 7. Qe2 {[%emt 0:00:04]} Nc6 {[%emt 0:00:03]} 8. O-O {[%emt 0:00:05]} Nf6 {[%emt 0:00:01] [#]} (8... Bc5 $142) 9. a4 {[%emt 0:00:07] B21: Sicilian: 2 f4 and Morra Gambit.} ({Better is} 9. Nd5 $1 $11 Nxd5 (9... Qd8 10. Be3) 10. exd5) 9... Ng4 {[%emt 0:00:08][%cal Oc6d4] [#] ...Nd4! is the strong threat.} 10. Ba2 $146 {[%emt 0:00:19][%mdl 8192] [#]} (10. Qd2 $15) ({Predecessor:} 10. Rd1 Bc5 11. Be3 Nxe3 12. fxe3 O-O 13. Kh1 Ne5 14. Nxe5 Qxe5 15. Qg4 d5 16. exd5 exd5 17. Rxd5 Qxd5 18. Qxc8 Qxc4 {0-1 (18) Haddock,P (1623)-Cumming,R (2140) London 2015}) 10... Nd4 $1 {[%emt 0:00:07][%mdl 512] Weighted Error Value: White=2.48/Black=0.38} 0-1

[Event "German-ch Blitz Women 2022"]
[Site "Magdeburg"]
[Date "2022.08.13"]
[Round "16.4"]
[White "Rath, Alina"]
[Black "Muetsch, Annmarie"]
[Result "1-0"]
[ECO "A10"]
[WhiteElo "2062"]
[BlackElo "2249"]
[Annotator "TA"]
[PlyCount "85"]
[EventDate "2022.08.10"]
[EventType "tourn"]
[EventCountry "GER"]
[SourceTitle "playchess.com"]
[Source "ChessBase"]
[SourceQuality "1"]
[TimeControl "180+2"]

{[%evp 9,85,24,20,12,26,19,20,14,19,2,29,32,27,12,4,-7,41,11,53,67,107,72,112,102,116,114,118,108,112,81,94,82,129,114,136,36,190,179,187,182,217,201,196,192,215,221,313,194,207,198,249,239,404,395,568,580,572,576,559,531,583,559,633,606,1191,1130,2348,2158,29983,29981,5702,1334,1312,1311,908,1068,845,808]} 1. c4 d6 2. Nc3 e5 3. g3 Nd7 4. Bg2 f5 5. d3 Ngf6 6. e3 {A21: English Opening: 1...e5 2 Nc3.} Be7 7. Nge2 O-O 8. O-O {The position is equal.} c6 9. b4 Kh8 {[#]} 10. Rb1 $146 ({Predecessor:} 10. a4 g5 11. f4 Ng4 12. h3 Nh6 13. b5 Qc7 14. a5 a6 15. b6 Qd8 16. d4 e4 17. Bb2 g4 18. d5 Bf6 19. dxc6 Nc5 20. c7 {1-0 (20) Fruteau,P-Garnier Salvi,V Paris 1993}) 10... Nb6 11. a4 a5 $1 12. b5 c5 (12... d5 $11 {is superior.}) 13. f4 {[%cal Bf2f4,Bf4f5][%mdl 32]} e4 14. dxe4 Nxc4 15. exf5 Bxf5 {[#]} 16. e4 $1 Be6 17. f5 Bf7 18. Nf4 Ne5 19. Bb2 Bc4 20. Re1 Qe8 (20... Bg8 $142) 21. Ncd5 $16 Bxd5 22. Nxd5 (22. exd5 $16 Nfd7 23. Ne6) 22... Rd8 $2 {Black cannot hold the game after this.} (22... Nxd5 $14 23. Qxd5 b6) 23. Nc7 $18 Qf7 24. Ne6 Nfg4 25. Nxd8 Rxd8 26. h3 Nf6 27. Bc3 Nh5 (27... b6 $142 28. Bf1 Qa2) 28. g4 Nf4 29. Bxa5 Rd7 (29... Rc8 $142 30. Bd2 Nxg2 31. Kxg2 c4) 30. Bc3 {aiming for Bxe5.} Qf6 (30... Bf6 {was worth a try.} 31. Bf1 Ned3) 31. Rf1 g5 (31... Nfd3 {might work better.} 32. a5 Qf8) 32. fxg6 hxg6 33. Qd2 g5 34. a5 {[%cal Ba4a5,Ba5a6,Ba6a7][%mdl 32]} Rd8 35. a6 b6 36. Ra1 Kg8 37. a7 Ra8 {[#]} 38. Rxf4 $1 Qxf4 (38... Qe6 39. Rf5) 39. Qd5+ Kh7 40. Bxe5 (40. Qxa8 $142 Nf3+ 41. Bxf3 Qe3+ 42. Kh2 Qxc3 43. Rf1) 40... Qxe5 41. Qxe5 ({Stronger than} 41. Qxa8 Qd4+ 42. Kh2 Qe5+ 43. Kg1 Qd4+ 44. Kh2 Qe5+ 45. Kg1 $11) 41... dxe5 42. Bf1 Bd6 43. Bc4 {Weighted Error Value: White=0.14 (very precise) /Black=0.61} 1-0

[Event "German-ch Blitz Women 2022"]
[Site "Magdeburg"]
[Date "2022.08.13"]
[Round "16.5"]
[White "Kunze, Kerstin"]
[Black "Zhou, Lepu Coco"]
[Result "1-0"]
[ECO "B40"]
[WhiteElo "2020"]
[BlackElo "1986"]
[Annotator "TA"]
[PlyCount "61"]
[EventDate "2022.08.10"]
[EventType "tourn"]
[EventCountry "GER"]
[SourceTitle "playchess.com"]
[Source "ChessBase"]
[SourceQuality "1"]
[TimeControl "180+2"]

{[%evp 9,60,-3,1,-20,-11,-29,-4,-18,-13,-20,-15,-20,-20,-23,-25,-60,-45,-534,-527,-543,-145,-143,-146,-198,-106,-166,-169,-172,-151,-250,-253,-296,-286,-602,-500,-755,-712,-677,-295,-462,-462,-486,-481,-447,-383,-428,-424,-364,-391,-791,29998,29999,29999]} 1. e4 {[%emt 0:00:01]} c5 {[%emt 0:00:01]} 2. Nf3 {[%emt 0:00:01]} e6 {[%emt 0:00:00]} 3. c4 {[%emt 0:00:03]} Nc6 {[%emt 0:00:01]} 4. Nc3 {[%emt 0:00:01]} Nd4 {[%emt 0:00:01]} 5. d3 {[%emt 0:00:23]} Ne7 {[%emt 0:00:04]} 6. Be3 {[%emt 0:00:04] B40: Sicilian: 2...e6, Unusual lines.} Nec6 {[%emt 0:00:03]} 7. Be2 {[%emt 0:00:24]} g6 {[%emt 0:00:02]} 8. O-O {[%emt 0:00:31] The position is equal.} Bg7 {[%emt 0:00:01]} 9. Qd2 {[%emt 0:00:03]} O-O {[%emt 0:00:02]} 10. Bh6 {[%emt 0:00:03]} a6 {[%emt 0:00:27][%cal Ba7a6,Ba6b5,Bb5b4][%mdl 32] [#]} 11. Rab1 $146 {[%emt 0:00:04]} ({Predecessor:} 11. Bxg7 Kxg7 12. Nxd4 Nxd4 13. Qf4 b5 14. Bg4 d6 15. e5 b4 16. Ne2 h5 17. Nxd4 hxg4 {0-1 (56) Heck,R (1534)-Alves,A (1867) Guarapari 2017}) 11... b5 {[%emt 0:00:07]} 12. cxb5 {[%emt 0:00:15]} axb5 {[%emt 0:00:01]} 13. b3 $2 {[%emt 0:00:08][%mdl 8192]} (13. Bxg7 $15 Kxg7 14. b4) 13... b4 $19 {[%emt 0:00:16]} 14. Bxg7 {[%emt 0:00:28]} Kxg7 {[%emt 0:00:01]} (14... bxc3 $19 {and Black stays clearly on top.} 15. Nxd4 cxd2 16. Nxc6 Qc7 17. Bxf8 Kxf8) 15. Na4 {[%emt 0:00:06]} d6 {[%emt 0:00:22]} 16. Qb2 {[%emt 0:00:22]} (16. Rbe1 $17 {was called for.}) 16... Qf6 {[%emt 0:00:07]} (16... Ba6 $19 {aiming for ...e5.} 17. e5 Bb5 18. exd6 Qxd6) 17. Nxd4 {[%emt 0:00:10]} (17. e5 $17 dxe5 18. Nxc5) 17... Nxd4 {[%emt 0:00:01]} 18. Bd1 {[%emt 0:00:19]} Ba6 {[%emt 0:00:02]} 19. Bc2 {[%emt 0:00:06]} (19. Qd2 $17) 19... Bb5 {[%emt 0:00:03]} 20. Nb6 {[%emt 0:00:04]} Ra7 {[%emt 0:00:01]} 21. Nc4 $2 {[%emt 0:00:01]} (21. Kh1) 21... d5 {[%emt 0:00:05]} 22. exd5 {[%emt 0:00:02]} (22. e5 $142 Qf4 23. Ne3) 22... exd5 {[%emt 0:00:01] [#] Hoping for ...Rfa8.} 23. Ne3 {[%emt 0:00:00][%cal Bc4e3,Be3g4,Bg4f6][%mdl 32]} Ne2+ {[%emt 0:00:06]} 24. Kh1 {[%emt 0:00:01]} Nc3 {[%emt 0:00:01]} 25. Rbe1 {[%emt 0:00:01]} Rxa2 {[%emt 0:00:02]} 26. Qc1 {[%emt 0:00:02]} Rfa8 {[%emt 0:00:21] Threatens to win with ...Qf4.} 27. Ng4 {[%emt 0:00:01]} Qd6 {[%emt 0:00:08]} (27... Qh4 $2 28. Ne5 $19) 28. Qh6+ {[%emt 0:00:01]} Kg8 {[%emt 0:00:01]} 29. Re3 $2 {[%emt 0:00:11]} (29. Qc1) 29... Qf8 $4 {[%emt 0:00:01][%mdl 8192] [#]} ({But not} 29... Rxc2 $2 30. Rh3 Re8 31. Qxh7+ Kf8 32. Nh6 $19) (29... Ra1 $19 30. Bb1 f5) 30. Nf6+ {[%emt 0:00:02]} Kh8 {[%emt 0:00:03]} 31. Qxh7# {White used his chance.  Weighted Error Value: White=0.83/Black=0.83} 1-0

[Event "German-ch Blitz Women 2022"]
[Site "Magdeburg"]
[Date "2022.08.13"]
[Round "16.6"]
[White "Doll, Rebecca"]
[Black "Nikolaeva, Mariya A"]
[Result "1-0"]
[ECO "C77"]
[WhiteElo "1933"]
[BlackElo "1309"]
[Annotator "TA"]
[PlyCount "81"]
[EventDate "2022.08.10"]
[EventType "tourn"]
[EventCountry "GER"]
[SourceTitle "playchess.com"]
[Source "ChessBase"]
[SourceQuality "1"]
[TimeControl "180+2"]

{[%evp 13,81,17,17,2,15,10,18,7,25,18,24,24,28,22,58,48,86,56,68,57,85,96,79,65,58,71,149,203,185,197,414,340,531,537,905,879,2618,2413,3350,3942,3282,1197,3140,1197,3154,2981,2816,2511,3371,2475,29985,5679,5669,5414,2887,2886,29982,29983,7627,5489,29988,29989,29992,29988,29993,29994,29994,29994,29996,29996]} 1. e4 e5 2. Nf3 Nc6 3. Bb5 {[%cal Bf1b5,Bb5a4,Ba4b3][%mdl 32]} a6 4. Ba4 Nf6 5. d3 b5 6. Bb3 Bc5 7. O-O d6 8. c3 {C78: Ruy Lopez: Archangelsk and Möller Defences.} Ba7 {8...h6 is the modern continuation.} 9. Nbd2 O-O 10. h3 {The position is equal.} h6 11. Re1 Na5 (11... Ne7 {is interesting.} 12. Nf1 Ng6 13. a4 Bd7) 12. Bc2 c5 13. Nf1 {[#]} Nb7 $146 ({Predecessor:} 13... Nc6 14. Ng3 Re8 15. Nh2 d5 16. Qf3 dxe4 17. dxe4 c4 18. Ng4 Nxg4 19. hxg4 Qh4 {½-½ (44) Atabayev,Y (2407)-Annageldyev,O (2397) Budapest 2013}) 14. Ng3 Be6 15. d4 cxd4 16. cxd4 Qc7 17. Be3 Na5 18. b3 {Inhibits Nc4.} exd4 19. Nxd4 Qe7 {Black is now going downhill.} (19... Nc6 $142) 20. Ndf5 (20. Ngf5 $16 Qd8 21. Rc1) 20... Bxf5 $18 21. Nxf5 {[%cal Bg3f5,Bf5h6,Bh6f7][%mdl 32]} Qc7 (21... Qe5 {was worth a try.} 22. Qxd6 Qxd6 23. Nxd6 Nc6) 22. Rc1 Bxe3 (22... Qd8 $142 23. Bf4 (23. Qxd6 Bxe3 24. Rxe3 Qxd6 $18) 23... Bc5 24. Bxd6 Bxd6) 23. Rxe3 ({Weaker is} 23. Nxe3 Nc6 $16) 23... Rad8 24. Rg3 {[%csl LRg7,LRh6]} Ne8 25. Nxh6+ Kh8 26. Qh5 Nf6 27. Nxf7+ Kg8 28. Qh8+ Kxf7 29. Qxg7+ Ke6 30. Qxc7 {[#] White wants to mate with e5.} Rd7 31. Qc3 Ke7 32. Qxa5 (32. e5 $142 Ne8 33. Qxa5 dxe5 34. Re1 Rd5 35. Qxa6 Rf6 36. Qb7+ Ke6 37. Qc6+ Nd6 38. Rg8) 32... Nh5 33. Rg5 Nf4 34. Kh2 {[#] Strongly threatening Rg7+.} Rf7 {Prevents Rg7.} 35. Qd2 Ne6 36. Rg4 {Rg6 would kill now.} Rd8 37. b4 {White mates.} Rdf8 38. f3 Nf4 39. Bb3 Rf6 40. Rg7+ Kd8 41. Qc2 {Weighted Error Value: White=0.08 (flawless) /Black=0.94} 1-0

[Event "German-ch Blitz Women 2022"]
[Site "Magdeburg"]
[Date "2022.08.13"]
[Round "16.7"]
[White "Wulf, Constanze"]
[Black "Schulze, Lara"]
[Result "0-1"]
[ECO "A06"]
[WhiteElo "1835"]
[BlackElo "2292"]
[Annotator "TA"]
[PlyCount "36"]
[EventDate "2022.08.10"]
[EventType "tourn"]
[EventCountry "GER"]
[SourceTitle "playchess.com"]
[Source "ChessBase"]
[SourceQuality "1"]
[TimeControl "180+2"]

{[%evp 11,36,8,14,5,12,-2,2,-7,-2,0,-18,-13,-17,-67,-15,-18,-9,-39,0,-40,-47,-71,-59,-58,18,-60,-35]} 1. Nf3 {[%emt 0:00:01]} d5 {[%emt 0:00:01]} 2. b3 {[%emt 0:00:02]} Bg4 {[%emt 0:00:02]} 3. e3 {[%emt 0:00:07]} Nf6 {[%emt 0:00:05]} 4. Bb2 {[%emt 0:00:09]} Nbd7 {[%emt 0:00:02]} 5. h3 {[%emt 0:00:04]} Bh5 {[%emt 0:00:01]} 6. Be2 {[%emt 0:00:07]} e6 {[%emt 0:00:04]} 7. O-O {[%emt 0:00:07] A06: Réti Opening: 1 Nf3 d5.} Bd6 {[%emt 0:00:01]} 8. d3 {[%emt 0:00:18]} O-O {[%emt 0:00:03]} 9. Nbd2 {[%emt 0:00:07] The position is equal.} e5 {[%emt 0:00:05]} 10. c4 {[%emt 0:00:15]} c6 {[%emt 0:00:00]} 11. Rc1 {[%emt 0:00:12]} Re8 {[%emt 0:00:02]} 12. Re1 {[%emt 0:00:01]} (12. cxd5 $11 Nxd5 13. g3) 12... Qe7 {[%emt 0:00:20] [#]} (12... e4 $1 $15 13. dxe4 dxe4) 13. Qc2 $146 {[%emt 0:00:35]} ({Predecessor:} 13. Nf1 Ba3 14. Bxa3 Qxa3 15. Qc2 h6 16. Ng3 Bg6 17. Nh4 Bh7 18. Nhf5 Qf8 19. c5 {½-½ (41) Reynolds,R (1755)-Blake,N ICCF email 2017}) 13... h6 {[%emt 0:00:12]} 14. Nf1 {[%emt 0:00:21]} Bg6 {[%emt 0:00:02]} 15. Ng3 {[%emt 0:00:08]} e4 {[%emt 0:00:05] [#] aiming for ...Bxg3.} 16. dxe4 {[%emt 0:00:18]} Bxg3 {[%emt 0:00:03]} ({Don't play} 16... dxe4 17. Nh4 $11) 17. fxg3 {[%emt 0:00:15]} Nxe4 {[%emt 0:00:01]} (17... Bxe4 $15 18. Qc3 dxc4) 18. Bd3 {[%emt 0:00:21]} (18. cxd5 $11 cxd5 19. Qc7) 18... Ndc5 {[%emt 0:00:04] Weighted Error Value: White=0.23 (precise) /Black=0.21 (precise)} 0-1